bitfinex/quotes_ETHUSD_20251024
["timestamp","ask_amount","ask_price","bid_price","bid_amount"]
[1761274826929,11.70614533,3893.5,3893.4,0.002]
[1761274828726,11.51614533,3893.5,3893.4,0.002]
[1761274829853,11.51514533,3893.5,3893.4,0.4573]
[1761274830154,10.60960898,3893.5,3893.4,0.4573]
[1761274831246,10.60960898,3893.5,3893.4,0.002]
[1761274831453,10.60960898,3893.5,3893.4,0.4573]
[1761274832353,4.942,3893.5,3893.4,0.4573]
[1761274836239,3.3868,3893.5,3893.4,0.4573]
[1761274836421,3.3868,3893.5,3893.4,0.9186]
[1761274849162,3.258,3893.5,3893.4,0.9186]
[1761274855492,3.258,3893.5,3893.4,0.4633]
[1761274855693,3.258,3893.5,3893.4,0.9186]
[1761274856055,3.258,3893.5,3893.4,0.4633]
[1761274857292,6.35722578,3893.5,3893.4,0.4633]
[1761274858602,6.35722578,3893.5,3893.4,0.9186]
[1761274859200,6.48602578,3893.5,3893.4,0.9186]
[1761274861605,3.3868,3893.5,3893.4,0.9186]
[1761274862170,3.3868,3893.5,3893.4,3.48704917]
[1761274862397,3.258,3893.5,3893.4,3.48704917]
[1761274862993,0.001,3893.8,3893.5,2.5683832]
[1761274863203,3.256,3893.7,3893.6,2.56831723]
[1761274863417,3.256,3893.7,3893.6,3.01291723]
[1761274863784,3.256,3893.7,3893.6,3.78448942]
[1761274864190,0.001,3893.8,3893.6,3.78448942]
[1761274864191,0.001,3893.8,3893.7,2.56825127]
[1761274864390,3.257,3893.8,3893.7,3.01285127]
[1761274864691,3.257,3893.8,3893.7,3.51973127]
[1761274864868,3.257,3893.8,3893.7,4.29122806]
[1761274869016,0.001,3893.8,3893.7,4.31691057]
[1761274869317,0.001,3893.8,3893.7,4.29122806]
[1761274874793,0.001,3893.8,3893.7,4.31691057]
[1761274875506,0.001,3893.8,3893.7,4.29122806]
[1761274876318,0.001,3893.8,3893.7,1.72297679]
[1761274876611,0.001,3893.8,3893.4,3.872]
[1761274876612,0.1648,3893.8,3893.4,0.002]
[1761274876814,0.5592543,3893.8,3893.4,0.002]
[1761274877031,0.5592543,3893.8,3893.4,2.57042258]
[1761274877235,0.1638,3893.7,3893.4,2.57042258]
[1761274877413,3.255,3893.6,3893.5,2.5683832]
[1761274881438,3.255,3893.6,3893.5,3.0129832]
[1761274883112,3.255,3893.6,3893.5,2.5683832]
[1761274883648,3.255,3893.6,3893.4,2.57041919]
[1761274885056,3.255,3893.6,3893.4,0.002]
[1761274885254,3.255,3893.5,3893.4,0.002]
[1761274886544,3.255,3893.5,3893.4,2.57044917]
[1761274891826,0.001,3893.8,3893.4,2.57044917]
[1761274892026,0.001,3893.8,3893.7,2.56825127]
[1761274892257,3.255,3893.8,3893.7,2.69705127]
[1761274892570,3.255,3893.8,3893.7,3.12585127]
[1761274894236,0.001,3893.8,3893.7,6.6771276]
[1761274894441,0.001,3893.8,3893.7,12.83157043]
[1761274894635,0.001,3893.8,3893.7,13.60283714]
[1761274894964,0.001,3893.8,3893.7,12.917127]
[1761274896367,0.001,3893.8,3893.7,14.28367919]
[1761274897670,0.001,3893.8,3893.7,12.917127]
[1761274898334,0.001,3893.8,3893.7,14.28929084]
[1761274899035,0.001,3894.6,3894.4,3.07466964]
[1761274899230,0.001,3894.6,3894.4,7.88286964]
[1761274899445,0.001,3894.6,3894.4,8.31166964]
[1761274899638,0.001,3894.6,3894.4,8.41449753]
[1761274900687,0.001,3894.6,3894.4,7.98569753]
[1761274900842,0.001,3895.8,3894.8,8.17694891]
[1761274901046,0.001,3895.8,3894.8,11.42994891]
[1761274901268,0.001,3895.8,3894.8,12.54357447]
[1761274902343,0.001,3895.8,3894.8,11.85874891]
[1761274904373,0.001,3895.8,3894.8,12.08956279]
[1761274904577,0.2451,3895.6,3894.8,4.86041981]
[1761274904784,2.163,3895.7,3894.8,4.86041981]
[1761274904983,0.2461,3895.4,3894.8,4.86041981]
[1761274905984,0.001,3895.4,3894.8,4.86041981]
[1761274906282,0.001,3895.4,3894.8,5.31489506]
[1761274906485,0.001,3895.4,3894.8,5.28921981]
[1761274906997,0.001,3895.4,3894.8,2.29289388]
[1761274907305,1.7431,3894.9,3893.7,0.4288]
[1761274907466,1.7431,3894.9,3894.4,0.10284336]
[1761274907467,2.2722443,3894.9,3894.4,0.10284336]
[1761274907656,0.1974,3894.8,3894.4,0.10284336]
[1761274907856,0.1974,3894.8,3894.3,2.56785334]
[1761274908156,0.19020899,3894.8,3894.3,2.56785334]
[1761274908360,0.19020899,3894.8,3894.4,2.56776921]
[1761274908556,0.19020899,3894.8,3894.5,2.56770612]
[1761274908800,0.2167,3894.9,3893.8,4.05422298]
[1761274908979,0.5877,3894.9,3894.8,2.56752593]
[1761274910303,0.778,3894.9,3894.7,2.56753562]
[1761274910463,0.1903,3894.8,3894.7,2.56753562]
[1761274915421,0.1903,3894.8,3894.1,0.50688]
[1761274915794,0.1903,3894.8,3894.7,2.56759185]
[1761274918404,0.1903,3894.8,3894.5,0.128]
[1761274918405,0.1903,3894.8,3894.5,2.69571088]
[1761274918605,0.1903,3894.8,3894.4,2.56773577]
[1761274919400,0.1903,3894.8,3894.5,2.56770121]
[1761274919801,0.1903,3894.8,3894.3,0.128]
[1761274920009,0.1903,3894.8,3894.3,2.69584834]
[1761274920206,0.1903,3894.8,3894.6,2.5676508]
[1761274920791,0.7157,3894.9,3894.3,0.128]
[1761274921028,0.1903,3894.8,3894.5,2.5677196]
[1761274921533,0.1903,3894.8,3894.7,2.56755217]
[1761274922101,3.4423,3894.8,3894.7,2.56755217]
[1761274922310,0.001,3894.9,3894.8,2.56752593]
[1761274922509,0.4038,3894.8,3894.7,0.77126671]
[1761274922894,0.4038,3894.8,3894.6,0.002]
[1761274923202,3.252,3894.7,3894.6,0.002]
[1761274923605,3.6558,3894.7,3894.6,2.56965778]
[1761274924598,3.6558,3894.7,3894.6,0.002]
[1761274925420,3.6558,3894.7,3894.6,2.56965778]
[1761274926732,7.11839118,3894.7,3894.6,0.002]
[1761274930356,8.67359118,3894.7,3894.6,0.002]
[1761274931820,5.42159118,3894.7,3894.6,0.002]
[1761274932016,8.67359118,3894.7,3894.6,0.002]
[1761274932453,8.80159118,3894.7,3894.6,0.002]
[1761274938669,11.36918303,3894.7,3894.6,0.002]
[1761274939651,11.36918303,3894.7,3892.4,2.56910178]
[1761274939880,11.36918303,3894.7,3889.5,6.0235214]
[1761274939881,2.57044515,3890.4,3889.5,6.0235214]
[1761274940091,2.57044515,3890.4,3888.3,0.0611]
[1761274940092,2.57069408,3890.0,3887.3,3.365]
[1761274940385,1.37744499,3888.3,3888.0,0.0611]
[1761274940541,1.37744499,3888.1,3888.0,0.0611]
[1761274940738,1.46932561,3888.1,3888.0,0.0611]
[1761274941178,0.55097799,3888.1,3888.0,0.0611]
[1761274941392,0.77272885,3888.9,3888.0,0.0611]
[1761274941393,0.68663567,3888.7,3888.0,1.42624318]
[1761274941694,0.68663567,3888.5,3888.1,1.78075635]
[1761274941984,1.23588353,3888.4,3888.2,3.40271884]
[1761274942139,1.23588353,3888.3,3888.2,3.377]
[1761274942345,0.54924786,3888.3,3888.1,0.0611]
[1761274942542,0.54924786,3888.2,3888.0,0.0631]
[1761274942841,0.54924786,3888.1,3888.0,0.1242]
[1761274943081,0.54924786,3888.1,3888.0,2.7792]
[1761274943277,0.54924786,3888.1,3888.0,4.84128]
[1761274943457,0.6853204,3888.7,3888.1,2.06208]
[1761274943644,1.23258819,3888.6,3888.2,0.50688]
[1761274943842,0.54726779,3888.5,3888.2,0.56798]
[1761274944076,0.54726779,3888.4,3888.3,0.0611]
[1761274945005,0.54726779,3888.4,3888.3,0.03540416]
[1761274946319,0.54726779,3888.4,3888.2,0.50688]
[1761274946320,0.54726779,3888.4,3888.2,0.47803564]
[1761274946495,0.6853204,3888.7,3888.3,3.378]
[1761274946813,0.54563661,3888.6,3888.1,4.12714892]
[1761274947106,0.54563661,3888.5,3888.1,4.12713975]
[1761274947311,0.54563661,3888.4,3888.2,3.376]
[1761274947475,0.54563661,3888.3,3888.2,3.376]
[1761274947901,0.54563661,3888.3,3888.1,4.12713975]
[1761274948212,0.54506195,3888.2,3888.1,1.5552]
[1761274948375,0.6853204,3888.8,3888.2,0.50688]
[1761274948575,0.6853204,3888.8,3888.1,1.5552]
[1761274948576,0.54500695,3888.7,3888.1,1.5552]
[1761274948791,0.54500695,3888.6,3888.2,3.375]
[1761274948992,1.23032735,3888.5,3888.2,3.375]
[1761274949191,1.23032735,3888.4,3888.3,0.50688]
[1761274949417,0.54500695,3888.4,3888.0,0.0631]
[1761274949600,0.54500695,3888.3,3888.0,0.0631]
[1761274949801,0.54500695,3888.2,3888.1,3.374]
[1761274950181,0.54500695,3888.2,3888.1,0.1288]
[1761274950686,0.54500695,3888.2,3888.1,3.5028]
[1761274951014,0.54500695,3888.2,3888.1,0.1288]
[1761274951806,0.54500695,3888.2,3888.1,2.0878]
[1761274952237,0.54500695,3888.2,3888.1,0.1288]
[1761274952601,0.54500695,3888.2,3888.1,3.4848]
[1761274952800,0.54500695,3888.2,3888.1,0.1288]
[1761274952997,0.54500695,3888.2,3888.1,3.4848]
[1761274953235,0.54500695,3888.2,3888.1,0.1288]
[1761274953433,0.4439,3888.5,3888.1,0.1288]
[1761274953632,3.01559617,3888.5,3888.1,0.1288]
[1761274953831,0.4439,3888.4,3888.2,3.371]
[1761274954033,0.4439,3888.4,3888.0,0.002]
[1761274954240,0.4439,3888.4,3888.1,3.1]
[1761274954738,0.4439,3888.4,3888.2,3.371]
[1761274955245,1.1292204,3889.5,3888.2,3.4998]
[1761274955444,2.6999577,3889.3,3888.3,0.1288]
[1761274955747,3.01512928,3889.2,3888.8,0.1288]
[1761274955901,3.01512928,3889.2,3888.9,3.372]
[1761274956101,0.4439,3889.1,3888.9,3.372]
[1761274957156,3.0152083,3889.1,3888.9,3.372]
[1761274957451,3.0152083,3889.1,3889.0,3.371]
[1761274957655,3.01526801,3889.0,3888.8,0.1288]
[1761274957821,2.57136801,3889.0,3888.9,3.369]
[1761274958410,3.01526801,3889.0,3888.9,3.369]
[1761274958652,0.4439,3889.0,3888.8,0.1288]
[1761274958810,2.57129329,3889.1,3888.9,3.369]
[1761274959009,2.5713727,3889.0,3888.8,0.1288]
[1761274959449,0.4439,3888.9,3888.8,0.1288]
[1761274959669,0.4439,3888.9,3888.8,3.4958]
[1761274960174,2.57129309,3889.1,3888.8,0.1288]
[1761274960374,2.57129309,3889.1,3888.8,3.4958]
[1761274960580,3.01519309,3889.1,3888.9,3.366]
[1761274960883,3.01521392,3889.1,3888.9,3.366]
[1761274961071,0.4439,3889.0,3888.9,3.366]
[1761274961272,3.0152551,3889.0,3888.9,3.366]
[1761274961450,3.0152551,3889.0,3888.8,0.1288]
[1761274961645,3.0152551,3889.0,3888.9,3.365]
[1761274961970,3.0152551,3889.0,3888.8,0.1288]
[1761274962172,3.0152551,3889.0,3888.9,3.365]
[1761274962385,0.001,3889.2,3888.9,3.365]
[1761274962679,0.001,3889.2,3889.1,0.1288]
[1761274963038,0.001,3889.2,3888.2,0.50688]
[1761274963350,0.4449,3889.2,3889.0,0.1288]
[1761274963572,0.4449,3889.2,3889.1,3.364]
[1761274963764,3.01612988,3889.2,3889.1,3.364]
[1761274963988,3.01612988,3889.2,3889.1,3.363]
[1761274964475,3.01612988,3889.2,3889.0,0.1288]
[1761274964679,3.01612988,3889.2,3889.1,3.363]
[1761274965279,3.01612988,3889.2,3889.0,0.1288]
[1761274965446,3.01612988,3889.2,3889.1,3.363]
[1761274965962,3.01612988,3889.2,3889.1,3.361]
[1761274966875,5.8396602,3889.2,3889.1,3.361]
[1761274967663,3.26843032,3889.2,3889.1,3.361]
[1761274967859,2.82453032,3889.2,3889.1,3.361]
[1761274968059,2.82453032,3889.2,3889.0,0.1288]
[1761274968265,5.83966633,3889.2,3889.1,3.358]
[1761274970362,5.83966633,3889.2,3889.0,0.1288]
[1761274970684,2.5713551,3889.0,3888.1,0.002]
[1761274970904,2.82353032,3888.5,3888.2,3.355]
[1761274972565,5.39510666,3888.7,3888.2,3.355]
[1761274973786,5.83900666,3888.7,3888.2,3.355]
[1761274973990,2.82353032,3888.5,3888.2,3.355]
[1761274974192,2.82353032,3888.5,3888.1,0.002]
[1761274974355,2.82353032,3888.5,3888.2,3.356]
[1761274974765,2.82353032,3888.5,3888.3,3.355]
[1761274974987,2.82353032,3888.5,3888.1,0.002]
[1761274975185,3.40743606,3888.5,3888.1,0.002]
[1761274975394,3.40743606,3888.5,3888.2,3.354]
[1761274975594,3.40743606,3888.5,3888.1,0.002]
[1761274975995,3.40743606,3888.5,3888.2,3.353]
[1761274976799,3.40743606,3888.5,3888.3,3.353]
[1761274977100,2.82353032,3888.5,3888.3,3.353]
[1761274977279,2.82353032,3888.7,3888.3,3.353]
[1761274977481,2.82353032,3888.9,3888.4,3.352]
[1761274977687,2.82353032,3889.3,3888.5,3.352]
[1761274977881,3.10598335,3889.1,3888.5,3.352]
[1761274978516,2.82353032,3888.9,3888.5,3.352]
[1761274978874,3.10598335,3889.1,3888.4,2.57174716]
[1761274979371,3.10598335,3889.1,3888.1,2.57394768]
[1761274979372,0.28245303,3889.1,3888.5,5.92367067]
[1761274979607,0.32989178,3889.0,3888.5,5.92367067]
[1761274979971,0.77419178,3889.0,3888.4,2.57174626]
[1761274980203,0.77419178,3889.0,3888.5,3.351]
[1761274980576,0.77419178,3889.0,3888.7,0.1288]
[1761274981497,2.82353032,3888.9,3888.7,0.1288]
[1761274981702,0.64514819,3888.8,3888.7,0.1288]
[1761274981884,0.64514819,3888.8,3888.7,3.4778]
[1761274982645,0.64514819,3888.8,3888.7,3.4768]
[1761274982824,0.64514819,3888.8,3888.7,0.1288]
[1761274983025,0.64514819,3888.8,3888.7,3.4768]
[1761274983430,0.64514819,3888.8,3888.7,0.1288]
[1761274983736,0.64514819,3888.8,3888.7,3.4758]
[1761274983937,0.64514819,3888.8,3888.7,0.1288]
[1761274984139,0.64514819,3888.8,3888.7,3.4758]
[1761274984443,0.64514819,3888.8,3888.7,3.4748]
[1761274984746,0.64514819,3888.8,3888.7,0.1288]
[1761274984945,0.64514819,3888.8,3888.7,5.4028]
[1761274985242,0.64514819,3888.8,3888.7,2.0578]
[1761274985426,0.64514819,3888.8,3888.7,5.4028]
[1761274985838,0.001,3889.2,3888.7,5.4028]
[1761274986308,0.001,3889.2,3889.1,0.1288]
[1761274986514,0.001,3889.2,3889.1,3.4738]
[1761274989461,0.4453,3889.2,3889.1,3.4738]
[1761274989667,0.74693775,3889.2,3889.1,3.4738]
[1761274990456,0.74693775,3889.2,3889.1,0.1288]
[1761274990667,0.74693775,3889.2,3889.1,3.4688]
[1761274991877,0.001,3889.2,3889.1,3.4678]
[1761274994374,0.4453,3889.2,3889.1,3.4678]
[1761274994879,0.4453,3889.2,3889.1,0.1288]
[1761274995043,0.4453,3889.2,3889.1,3.4658]
[1761274995044,0.001,3889.2,3889.1,3.4658]
[1761274996063,0.001,3889.2,3889.1,0.1288]
[1761274996263,0.001,3889.2,3889.1,3.4638]
[1761274997151,0.001,3889.2,3889.1,0.1288]
[1761274997354,0.001,3889.2,3889.1,3.4628]
[1761274999455,0.001,3889.2,3889.1,0.1288]
[1761274999857,0.001,3889.2,3889.1,3.4598]
[1761275000691,0.001,3889.2,3889.1,6.03108898]
[1761275000893,0.001,3889.2,3889.1,6.53796898]
[1761275001191,0.001,3889.2,3889.1,11.65028899]
[1761275001392,0.001,3889.2,3889.1,13.01168608]
[1761275001690,0.001,3889.2,3889.1,14.81168608]
[1761275001990,0.001,3889.2,3889.1,10.11928899]
[1761275002191,0.001,3889.2,3889.1,6.56216898]
[1761275002351,0.001,3889.2,3889.1,9.89316898]
[1761275003188,0.001,3889.2,3889.1,10.81258362]
[1761275004274,0.001,3889.2,3889.1,9.89116898]
[1761275006073,0.001,3889.2,3889.1,6.56216898]
[1761275006374,0.001,3889.2,3889.1,9.89016898]
[1761275006974,0.001,3889.2,3889.1,6.56216898]
[1761275007183,0.001,3889.2,3889.1,9.88916898]
[1761275008472,0.001,3889.2,3889.1,9.88716898]
[1761275010215,0.001,3889.2,3889.1,6.56216898]
[1761275010415,0.001,3889.2,3889.1,9.88516898]
[1761275012021,0.001,3889.2,3889.1,6.56216898]
[1761275012253,0.001,3889.2,3889.1,13.75516898]
[1761275012524,0.001,3889.2,3889.1,13.75316898]
[1761275013325,0.001,3889.2,3889.1,10.43216898]
[1761275013535,0.001,3889.2,3889.1,13.75216898]
[1761275015395,0.001,3889.2,3889.1,11.56028898]
[1761275015628,0.001,3889.2,3889.1,12.06716898]
[1761275017303,0.001,3889.2,3889.1,8.74816898]
[1761275017536,0.001,3889.2,3889.1,12.06516898]
[1761275018032,0.001,3889.2,3889.1,4.87816898]
[1761275018728,0.001,3889.2,3889.1,8.19416898]
[1761275019237,0.001,3889.2,3889.1,4.87816898]
[1761275019603,0.001,3889.2,3889.1,8.19416898]
[1761275019806,0.001,3889.2,3889.1,4.87816898]
[1761275020142,0.001,3889.2,3889.1,8.19316898]
[1761275020355,0.001,3889.2,3889.1,4.37128898]
[1761275020650,0.4748,3889.2,3889.1,7.68628898]
[1761275021049,0.001,3889.2,3889.1,4.37128898]
[1761275021235,0.001,3889.2,3889.1,7.68728898]
[1761275021741,0.001,3889.2,3889.1,4.37128898]
[1761275021944,0.001,3889.2,3889.1,7.68628898]
[1761275022152,0.4748,3889.2,3889.1,7.68628898]
[1761275022311,0.001,3889.2,3889.1,7.68628898]
[1761275022915,0.4738,3889.5,3889.3,2.57115676]
[1761275023110,0.4738,3889.5,3889.4,2.57109065]
[1761275023619,0.4738,3889.5,3889.4,5.88509065]
[1761275024243,0.4738,3889.5,3889.4,2.57109065]
[1761275024916,0.4738,3889.5,3889.4,5.88409065]
[1761275025313,0.4738,3889.5,3889.4,2.69989065]
[1761275025513,0.4738,3889.5,3889.4,7.94189065]
[1761275025743,0.001,3889.6,3889.5,2.57102455]
[1761275025950,0.4748,3889.6,3889.5,5.88302455]
[1761275026147,0.4748,3889.6,3889.5,2.57102455]
[1761275026534,0.4748,3889.6,3889.5,5.88302455]
[1761275026735,0.4748,3889.6,3889.5,2.57102455]
[1761275026951,0.4748,3889.6,3889.5,5.88202455]
[1761275027341,0.4748,3889.6,3889.4,2.0578]
[1761275027543,4.03192001,3889.6,3889.5,3.311]
[1761275027729,1.15802465,3889.6,3889.5,3.314]
[1761275028053,0.4748,3889.6,3889.5,3.314]
[1761275028925,0.4748,3889.6,3889.4,1.929]
[1761275029130,4.03192001,3889.6,3889.5,3.314]
[1761275029429,4.03192001,3889.6,3889.4,1.929]
[1761275029751,0.899942,3889.5,3889.4,1.929]
[1761275029916,0.899942,3889.5,3889.4,5.244]
[1761275030331,5.02616655,3889.5,3889.4,1.929]
[1761275030652,5.02616655,3889.5,3889.4,4.227]
[1761275031041,5.02616655,3889.5,3889.4,1.929]
[1761275031352,2.57110414,3889.4,3889.2,0.049]
[1761275031519,4.41555662,3889.3,3889.2,0.049]
[1761275031714,4.88935662,3889.3,3889.2,3.363]
[1761275032054,9.01571338,3889.3,3889.2,0.049]
[1761275032245,9.01571338,3889.3,3889.2,3.362]
[1761275033262,9.01571338,3889.3,3889.2,0.049]
[1761275033433,9.01571338,3889.3,3889.2,3.363]
[1761275033639,9.01571338,3889.3,3889.2,0.049]
[1761275033943,9.01571338,3889.3,3889.2,3.362]
[1761275034873,9.01571338,3889.3,3889.2,3.361]
[1761275036382,9.01571338,3889.3,3889.2,0.049]
[1761275036749,9.01571338,3889.3,3889.2,2.616]
[1761275037070,9.01571338,3889.3,3889.2,0.049]
[1761275037242,9.01571338,3889.3,3889.2,2.615]
[1761275037442,9.14451338,3889.3,3889.2,0.049]
[1761275038079,9.14451338,3889.3,3889.2,3.359]
[1761275039444,9.14451338,3889.3,3889.2,0.049]
[1761275039860,9.14451338,3889.3,3889.2,3.358]
[1761275040175,9.14451338,3889.3,3889.2,0.049]
[1761275040381,9.14451338,3889.3,3889.2,3.358]
[1761275041267,9.14451338,3889.3,3889.2,0.049]
[1761275043583,9.14451338,3889.3,3889.2,3.358]
[1761275043899,9.14451338,3889.3,3889.2,3.356]
[1761275044805,9.14451338,3889.3,3889.2,0.049]
[1761275044970,9.14451338,3889.3,3889.2,3.356]
[1761275045302,9.14451338,3889.3,3889.2,3.355]
[1761275046397,9.14451338,3889.3,3889.2,0.049]
[1761275046568,9.14451338,3889.3,3889.2,1.241]
[1761275046887,9.14451338,3889.3,3889.2,0.049]
[1761275047083,9.14451338,3889.3,3889.2,3.354]
[1761275048212,9.14451338,3889.3,3889.2,0.049]
[1761275048812,4.12642287,3889.2,3889.1,0.002]
[1761275049015,4.12642287,3889.2,3888.8,0.002]
[1761275049016,4.12662122,3888.9,3888.8,0.002]
[1761275049227,8.04124123,3888.9,3888.8,0.002]
[1761275049514,7.68400575,3888.5,3888.4,0.002]
[1761275049669,2.57188416,3888.2,3888.0,0.002]
[1761275049889,6.25780417,3888.2,3888.0,0.002]
[1761275050094,6.72240417,3888.2,3888.0,0.002]
[1761275050792,8.81728234,3888.2,3888.0,0.002]
[1761275051888,5.99128325,3888.2,3888.0,0.002]
[1761275052085,7.07995085,3888.2,3888.0,0.002]
[1761275052391,9.90594994,3888.2,3888.0,0.002]
[1761275052721,11.46114994,3888.2,3888.0,0.002]
[1761275055046,8.63515085,3888.2,3888.0,0.002]
[1761275055332,4.50999909,3888.2,3888.0,0.002]
[1761275056326,2.95479909,3888.2,3888.0,0.002]
[1761275058545,4.50999909,3888.2,3888.0,0.002]
[1761275061916,4.50999909,3888.2,3888.1,3.303]
[1761275062119,7.83651866,3888.2,3888.1,0.002]
[1761275062318,11.12711775,3888.2,3888.1,0.849]
[1761275062518,8.30111866,3888.2,3888.1,3.302]
[1761275062744,5.7292345,3888.2,3888.1,3.302]
[1761275062947,5.2646345,3888.2,3888.1,3.302]
[1761275063463,5.2646345,3888.2,3888.1,3.303]
[1761275063663,5.7292345,3888.2,3888.1,3.303]
[1761275064244,5.2646345,3888.2,3888.1,3.303]
[1761275064458,4.50999909,3888.2,3888.1,3.303]
[1761275064967,4.97459909,3888.2,3888.1,3.303]
[1761275067474,4.97459909,3888.2,3888.1,0.002]
[1761275067475,10.24368234,3888.2,3888.1,0.002]
[1761275071481,10.9347767,3888.2,3888.1,0.002]
[1761275071654,12.37737166,3888.2,3888.1,0.002]
[1761275073579,11.6862773,3888.2,3888.1,0.002]
[1761275073778,4.1271503,3888.1,3887.8,0.002]
[1761275073992,7.1779817,3887.9,3887.8,0.002]
[1761275074291,8.95266053,3887.9,3887.8,0.002]
[1761275074496,9.41626053,3887.9,3887.8,0.002]
[1761275075755,10.10903861,3887.9,3887.8,0.002]
[1761275077468,9.54506053,3887.9,3887.8,0.002]
[1761275079153,10.23829999,3887.9,3887.8,0.002]
[1761275079457,9.54506053,3887.9,3887.8,0.002]
[1761275087974,10.23782149,3887.9,3887.8,0.002]
[1761275088383,9.54506053,3887.9,3887.8,0.002]
[1761275088892,10.23784159,3887.9,3887.8,0.002]
[1761275089488,9.54506053,3887.9,3887.8,0.002]
[1761275089697,10.23788379,3887.9,3887.8,0.002]
[1761275090091,9.54506053,3887.9,3887.8,0.002]
[1761275094115,8.85676053,3887.9,3887.8,0.002]
[1761275095141,9.55011771,3887.9,3887.8,0.002]
[1761275098237,8.85676053,3887.9,3887.8,0.002]
[1761275099025,9.55078793,3887.9,3887.8,0.002]
[1761275099245,7.7761091,3887.9,3887.8,0.002]
[1761275099740,7.0820817,3887.9,3887.8,0.002]
[1761275100547,4.25608261,3887.9,3887.8,0.002]
[1761275101060,4.69588261,3887.9,3887.8,0.002]
[1761275101648,4.25608261,3887.9,3887.8,0.002]
[1761275102012,1.684,3887.9,3887.8,0.002]
[1761275103433,4.25608261,3887.9,3887.8,0.002]
[1761275106335,1.684,3887.9,3887.8,0.002]
[1761275107045,4.25608261,3887.9,3887.8,0.002]
[1761275109466,1.684,3887.9,3887.8,0.002]
[1761275110254,0.001,3888.0,3887.8,0.004]
[1761275110741,0.001,3888.0,3887.9,0.002]
[1761275111544,0.001,3888.0,3887.9,2.57208261]
[1761275111750,0.001,3888.0,3887.9,2.70288261]
[1761275112752,0.001,3888.0,3887.9,5.98788261]
[1761275113670,0.001,3888.0,3887.9,0.1288]
[1761275113881,0.001,3888.0,3887.8,0.002]
[1761275114087,0.001,3888.0,3887.9,2.266]
[1761275117084,0.001,3888.0,3887.9,4.83808261]
[1761275117293,0.001,3888.0,3887.9,2.266]
[1761275118780,0.001,3888.0,3887.8,0.1308]
[1761275118992,0.001,3888.0,3887.9,3.284]
[1761275120481,0.001,3888.0,3887.8,0.90351094]
[1761275120680,0.001,3888.0,3887.9,3.284]
[1761275123479,0.001,3888.0,3887.8,0.002]
[1761275123690,0.001,3888.0,3887.9,3.284]
[1761275131795,0.001,3888.0,3887.8,0.1308]
[1761275132089,0.001,3888.0,3887.9,3.284]
[1761275134720,0.001,3888.0,3887.9,3.286]
[1761275137432,0.001,3888.0,3887.9,5.85808261]
[1761275138634,0.001,3888.0,3887.9,5.86008261]
[1761275139009,0.001,3888.0,3887.9,5.98888261]
[1761275139207,0.001,3888.0,3887.9,5.98688261]
[1761275139535,0.001,3888.0,3887.9,3.4148]
[1761275141014,0.001,3888.0,3887.9,2.70288261]
[1761275141323,0.001,3888.0,3887.9,5.98588261]
[1761275144506,0.001,3888.0,3887.9,5.98788261]
[1761275145431,0.001,3888.0,3887.9,5.98588261]
[1761275147999,0.001,3888.0,3887.9,3.4138]
[1761275149808,0.4597,3888.0,3887.9,3.4138]
[1761275152750,0.001,3888.0,3887.9,3.4138]
[1761275154233,0.001,3888.0,3887.9,5.98588261]
[1761275155168,0.001,3888.0,3887.9,5.98488261]
[1761275156861,0.4597,3888.0,3887.9,3.4128]
[1761275162261,0.001,3888.0,3887.9,0.1308]
[1761275162434,0.4481,3888.0,3887.9,3.284]
[1761275164480,0.4481,3888.0,3887.9,5.85608261]
[1761275164777,0.4481,3888.0,3887.9,3.284]
[1761275165080,0.001,3888.0,3887.9,3.284]
[1761275165590,0.001,3888.0,3887.9,5.85608261]
[1761275166517,0.001,3888.0,3887.9,3.284]
[1761275167256,0.001,3888.0,3887.9,0.002]
[1761275167460,0.001,3888.0,3887.9,5.85508261]
[1761275173075,0.4481,3888.0,3887.9,5.85508261]
[1761275174295,0.001,3888.0,3887.9,5.85508261]
[1761275183817,3.27294502,3888.0,3887.9,0.002]
[1761275184123,7.72745598,3888.0,3887.9,2.579]
[1761275184487,7.72745598,3888.0,3887.9,3.282]
[1761275184921,10.552301,3888.0,3887.9,3.282]
[1761275185226,7.72745598,3888.0,3887.9,3.282]
[1761275185607,10.552301,3888.0,3887.9,0.002]
[1761275185813,11.2469887,3888.0,3887.9,0.002]
[1761275186205,10.552301,3888.0,3887.9,0.002]
[1761275187218,11.2469887,3888.0,3887.9,0.002]
[1761275188389,10.552301,3888.0,3887.9,0.002]
[1761275190130,11.2469887,3888.0,3887.9,0.002]
[1761275190434,11.35005345,3888.0,3887.9,0.002]
[1761275190639,11.35005345,3888.0,3887.8,0.002]
[1761275190640,4.12728261,3887.9,3887.8,0.002]
[1761275190847,4.12734877,3887.8,3887.7,0.002]
[1761275191070,4.12734877,3887.8,3887.5,0.002]
[1761275191071,7.20489004,3887.6,3887.5,0.002]
[1761275191355,9.77717113,3887.6,3887.5,0.002]
[1761275191655,11.9690983,3887.6,3887.5,0.002]
[1761275192438,12.66133699,3887.6,3887.5,0.002]
[1761275192868,11.9690983,3887.6,3887.5,0.002]
[1761275193204,12.4759783,3887.6,3887.5,0.002]
[1761275193411,4.12754726,3887.5,3887.4,0.002]
[1761275193717,6.82915138,3887.5,3887.4,0.002]
[1761275193925,6.95795138,3887.5,3887.4,0.002]
[1761275194307,6.26602658,3887.5,3887.4,0.002]
[1761275196121,6.36910568,3887.5,3887.4,0.002]